[Event "Early-Titled-Tuesday-Blitz-March-12-2024"]
[Site "Chess.com"]
[Date "2024.03.12"]
[Round "7"]
[White "DrRiebert"]
[Black "Blitzstream"]
[Result "0-1"]
[WhiteElo "2432"]
[BlackElo "2802"]
[TimeControl "180+1"]
[EndTime "9:15:24 PDT"]
[Termination "Blitzstream won by resignation"]

1. e4 {[%clk 0:03:00.9]} 1... c5 {[%clk 0:03:00]} 2. Nf3 {[%clk 0:03:01.2]} 2...
d6 {[%clk 0:03:00.1]} 3. d4 {[%clk 0:03:02]} 3... cxd4 {[%clk 0:03:01]} 4. Nxd4
{[%clk 0:03:02.6]} 4... Nf6 {[%clk 0:03:01.4]} 5. Nc3 {[%clk 0:03:03.4]} 5... a6
{[%clk 0:03:01.1]} 6. Nb3 {[%clk 0:03:02.8]} 6... g6 {[%clk 0:02:59.1]} 7. Bg5
{[%clk 0:03:01.7]} 7... Bg7 {[%clk 0:02:58.5]} 8. Qd2 {[%clk 0:03:02.5]} 8...
O-O {[%clk 0:02:57.4]} 9. O-O-O {[%clk 0:03:02]} 9... b5 {[%clk 0:02:56.9]} 10.
e5 {[%clk 0:02:56.8]} 10... Ne8 {[%clk 0:02:54.2]} 11. Nd5 {[%clk 0:02:15.6]}
11... Nc6 {[%clk 0:02:52.2]} 12. Nd4 {[%clk 0:02:12.2]} 12... Nxd4 {[%clk
0:02:34.7]} 13. Nxe7+ {[%clk 0:02:11.7]} 13... Kh8 {[%clk 0:02:32]} 14. Nxg6+
{[%clk 0:02:11.9]} 14... hxg6 {[%clk 0:02:30.8]} 15. Bxd8 {[%clk 0:02:12.7]}
15... dxe5 {[%clk 0:02:29.7]} 16. Be7 {[%clk 0:02:07]} 16... Rg8 {[%clk
0:02:29.4]} 17. h4 {[%clk 0:01:42.5]} 17... Bf5 {[%clk 0:02:20.9]} 18. Bd3
{[%clk 0:01:42.1]} 18... e4 {[%clk 0:02:20.6]} 19. h5 {[%clk 0:01:41.6]} 19...
g5 {[%clk 0:02:17.3]} 20. h6 {[%clk 0:00:50.8]} 20... Be5 {[%clk 0:02:17]} 21.
h7 {[%clk 0:00:45.4]} 21... Rg7 {[%clk 0:02:09]} 22. Bf1 {[%clk 0:00:26]} 22...
Rc8 {[%clk 0:02:01.4]} 23. Qxd4 {[%clk 0:00:23.9]} 23... Bxd4 {[%clk 0:02:00.1]}
24. Rxd4 {[%clk 0:00:24.8]} 24... f6 {[%clk 0:01:52.6]} 25. Bd8 {[%clk
0:00:17.6]} 25... e3 {[%clk 0:01:52.2]} 26. Bd3 {[%clk 0:00:14.7]} 26... Bxd3
{[%clk 0:01:50]} 27. Rxd3 {[%clk 0:00:15.6]} 27... exf2 {[%clk 0:01:48.9]} 28.
Rf1 {[%clk 0:00:15.8]} 28... Kxh7 {[%clk 0:01:45.8]} 29. Rxf2 {[%clk 0:00:16.4]}
29... Kg6 {[%clk 0:01:43.4]} 30. a3 {[%clk 0:00:14.3]} 30... Rb7 {[%clk
0:01:34.4]} 31. g4 {[%clk 0:00:12.8]} 31... b4 {[%clk 0:01:30.2]} 32. a4 {[%clk
0:00:11.4]} 32... b3 {[%clk 0:01:29.6]} 33. c3 {[%clk 0:00:11.4]} 33... Rc4
{[%clk 0:01:24.9]} 34. Rdf3 {[%clk 0:00:11.3]} 34... Rf7 {[%clk 0:01:23]} 35.
Rf5 {[%clk 0:00:09.6]} 35... Rxa4 {[%clk 0:01:14.9]} 36. Kd2 {[%clk 0:00:08.7]}
36... Rxg4 {[%clk 0:01:14.8]} 37. Ra5 {[%clk 0:00:08.1]} 37... Rd7+ {[%clk
0:01:09.8]} 0-1

[Event "Early-Titled-Tuesday-Blitz-March-12-2024"]
[Site "Chess.com"]
[Date "2024.03.12"]
[Round "7"]
[White "Susal_De_Silva"]
[Black "snowlord"]
[Result "0-1"]
[WhiteElo "2707"]
[BlackElo "2911"]
[TimeControl "180+1"]
[EndTime "9:15:25 PDT"]
[Termination "snowlord won by checkmate"]

1. e4 {[%clk 0:03:00.9]} 1... c5 {[%clk 0:02:59.9]} 2. Nf3 {[%clk 0:03:01]} 2...
Nc6 {[%clk 0:03:00.6]} 3. Bc4 {[%clk 0:03:01.2]} 3... e6 {[%clk 0:02:59.9]} 4.
O-O {[%clk 0:03:01.1]} 4... Nf6 {[%clk 0:03:00.2]} 5. Re1 {[%clk 0:02:58.5]}
5... Be7 {[%clk 0:02:44.7]} 6. e5 {[%clk 0:02:52.1]} 6... Nd5 {[%clk 0:02:43.2]}
7. c3 {[%clk 0:02:52.6]} 7... Nb6 {[%clk 0:02:25.9]} 8. Bb3 {[%clk 0:02:50.1]}
8... d6 {[%clk 0:02:26.2]} 9. d4 {[%clk 0:02:50.1]} 9... cxd4 {[%clk 0:02:25.7]}
10. cxd4 {[%clk 0:02:49.8]} 10... dxe5 {[%clk 0:02:26.1]} 11. dxe5 {[%clk
0:02:49.7]} 11... O-O {[%clk 0:02:26.8]} 12. Qe2 {[%clk 0:02:47.6]} 12... Nd4
{[%clk 0:02:27]} 13. Nxd4 {[%clk 0:02:43.7]} 13... Qxd4 {[%clk 0:02:27.9]} 14.
Nc3 {[%clk 0:02:37.2]} 14... Bd7 {[%clk 0:02:28.3]} 15. Bc2 {[%clk 0:02:29.5]}
15... Bc6 {[%clk 0:02:25]} 16. Rd1 {[%clk 0:02:01.5]} 16... Qc4 {[%clk
0:02:18.7]} 17. Rd3 {[%clk 0:01:44.2]} 17... Rad8 {[%clk 0:02:12.3]} 18. Rh3
{[%clk 0:01:32.3]} 18... g6 {[%clk 0:02:07.3]} 19. Qe3 {[%clk 0:01:31.5]} 19...
Qg4 {[%clk 0:01:53.3]} 20. Rg3 {[%clk 0:01:29.8]} 20... Qd4 {[%clk 0:01:41.7]}
21. Qe2 {[%clk 0:01:05.2]} 21... Nd5 {[%clk 0:01:05.1]} 22. Bh6 {[%clk
0:00:50.3]} 22... Rfe8 {[%clk 0:00:57.8]} 23. Rd1 {[%clk 0:00:47.7]} 23... Nxc3
{[%clk 0:00:53]} 24. Rxc3 {[%clk 0:00:48.6]} 24... Qh4 {[%clk 0:00:45.6]} 25.
Bc1 {[%clk 0:00:44]} 25... Rxd1+ {[%clk 0:00:43.3]} 26. Qxd1 {[%clk 0:00:39.9]}
26... Rd8 {[%clk 0:00:40.5]} 27. Rd3 {[%clk 0:00:35.5]} 27... Rxd3 {[%clk
0:00:40.6]} 28. Bxd3 {[%clk 0:00:36.3]} 28... Qd4 {[%clk 0:00:36.8]} 29. Qe2
{[%clk 0:00:35]} 29... Qd5 {[%clk 0:00:36.8]} 30. b3 {[%clk 0:00:29.4]} 30...
Qxg2# {[%clk 0:00:36.6]} 0-1

[Event "Early-Titled-Tuesday-Blitz-March-12-2024"]
[Site "Chess.com"]
[Date "2024.03.12"]
[Round "7"]
[White "NelsonLinda"]
[Black "koncheto"]
[Result "1/2-1/2"]
[WhiteElo "2614"]
[BlackElo "2480"]
[TimeControl "180+1"]
[EndTime "9:15:35 PDT"]
[Termination "Game drawn by repetition"]

1. Nf3 {[%clk 0:02:59.6]} 1... Nf6 {[%clk 0:02:59.3]} 2. b3 {[%clk 0:02:57]}
2... d5 {[%clk 0:02:58.4]} 3. Bb2 {[%clk 0:02:57.1]} 3... Bf5 {[%clk 0:02:59.3]}
4. d3 {[%clk 0:02:56.9]} 4... e6 {[%clk 0:02:59.8]} 5. Nbd2 {[%clk 0:02:56.7]}
5... h6 {[%clk 0:03:00.3]} 6. g3 {[%clk 0:02:57.2]} 6... c5 {[%clk 0:03:00.7]}
7. Bg2 {[%clk 0:02:57.7]} 7... Nc6 {[%clk 0:03:01]} 8. O-O {[%clk 0:02:57.5]}
8... Be7 {[%clk 0:03:00.2]} 9. Re1 {[%clk 0:02:51.3]} 9... O-O {[%clk
0:03:00.2]} 10. e4 {[%clk 0:02:51.3]} 10... Bh7 {[%clk 0:03:00.8]} 11. h4 {[%clk
0:02:46.9]} 11... Qc7 {[%clk 0:02:56.6]} 12. Qe2 {[%clk 0:02:34.6]} 12... dxe4
{[%clk 0:02:54.9]} 13. dxe4 {[%clk 0:02:34.1]} 13... Rfd8 {[%clk 0:02:55.3]} 14.
a3 {[%clk 0:02:32.8]} 14... Rac8 {[%clk 0:02:48.7]} 15. c3 {[%clk 0:02:16.7]}
15... Qd7 {[%clk 0:02:35.1]} 16. Rad1 {[%clk 0:02:14.8]} 16... Qd3 {[%clk
0:02:35.5]} 17. Qxd3 {[%clk 0:01:55.5]} 17... Rxd3 {[%clk 0:02:36.4]} 18. Bf1
{[%clk 0:01:56]} 18... Rd7 {[%clk 0:02:33.7]} 19. b4 {[%clk 0:01:53.5]} 19...
Nxe4 {[%clk 0:02:29.9]} 20. b5 {[%clk 0:01:34.8]} 20... Nxd2 {[%clk 0:02:19.2]}
21. Rxd2 {[%clk 0:01:15.9]} 21... Rxd2 {[%clk 0:02:18.5]} 22. Nxd2 {[%clk
0:01:16.8]} 22... Na5 {[%clk 0:02:19.4]} 23. c4 {[%clk 0:01:10.4]} 23... Rd8
{[%clk 0:02:17.2]} 24. Bc3 {[%clk 0:01:10.1]} 24... b6 {[%clk 0:02:07.8]} 25.
Bxa5 {[%clk 0:01:08.3]} 25... bxa5 {[%clk 0:02:08.2]} 26. Nb3 {[%clk 0:01:08.9]}
26... a4 {[%clk 0:02:06.7]} 27. Na5 {[%clk 0:01:09.1]} 27... Rd2 {[%clk
0:01:59.2]} 28. Nc6 {[%clk 0:00:51.6]} 28... Bf6 {[%clk 0:01:52]} 29. Nxa7
{[%clk 0:00:51.9]} 29... Bd4 {[%clk 0:01:50.5]} 30. Be2 {[%clk 0:00:52.4]} 30...
Bd3 {[%clk 0:01:44]} 31. Kf1 {[%clk 0:00:51]} 31... Ra2 {[%clk 0:01:39.6]} 32.
b6 {[%clk 0:00:36.6]} 32... Bxc4 {[%clk 0:01:31.6]} 33. b7 {[%clk 0:00:32.1]}
33... Rb2 {[%clk 0:01:03.8]} 34. Bxc4 {[%clk 0:00:31]} 34... Rxf2+ {[%clk
0:01:03.2]} 35. Kg1 {[%clk 0:00:31.1]} 35... Re2+ {[%clk 0:01:02.4]} 36. Kf1
{[%clk 0:00:28.7]} 36... Rf2+ {[%clk 0:01:02.5]} 37. Kg1 {[%clk 0:00:29.1]}
37... Re2+ {[%clk 0:01:03.4]} 38. Kf1 {[%clk 0:00:11.2]} 38... Rf2+ {[%clk
0:01:02.6]} 1/2-1/2

[Event "Early-Titled-Tuesday-Blitz-March-12-2024"]
[Site "Chess.com"]
[Date "2024.03.12"]
[Round "7"]
[White "Viktoker"]
[Black "Chessdude1987"]
[Result "0-1"]
[WhiteElo "2489"]
[BlackElo "2407"]
[TimeControl "180+1"]
[EndTime "9:15:35 PDT"]
[Termination "Chessdude1987 won by checkmate"]

1. d4 {[%clk 0:02:56.4]} 1... e6 {[%clk 0:03:00.2]} 2. Bf4 {[%clk 0:02:55.8]}
2... f5 {[%clk 0:02:56.9]} 3. g4 {[%clk 0:02:54]} 3... fxg4 {[%clk 0:02:57.1]}
4. e4 {[%clk 0:02:53.5]} 4... c5 {[%clk 0:02:53.9]} 5. d5 {[%clk 0:02:47.7]}
5... e5 {[%clk 0:02:38.9]} 6. Bg3 {[%clk 0:02:28.1]} 6... d6 {[%clk 0:02:36.4]}
7. h3 {[%clk 0:02:28.5]} 7... Nf6 {[%clk 0:02:35.9]} 8. hxg4 {[%clk 0:02:28.1]}
8... Bxg4 {[%clk 0:02:27.2]} 9. Qd3 {[%clk 0:02:16.2]} 9... Nbd7 {[%clk
0:02:24.9]} 10. Nd2 {[%clk 0:02:13.7]} 10... Qa5 {[%clk 0:02:18.2]} 11. Bh3
{[%clk 0:02:07.3]} 11... O-O-O {[%clk 0:02:04.7]} 12. Bxg4 {[%clk 0:01:44.1]}
12... Nxg4 {[%clk 0:02:04.9]} 13. Nf3 {[%clk 0:01:40.7]} 13... Be7 {[%clk
0:01:58.7]} 14. Ke2 {[%clk 0:01:27.7]} 14... Kb8 {[%clk 0:01:51]} 15. Nc4 {[%clk
0:01:27.5]} 15... Qc7 {[%clk 0:01:50.9]} 16. a4 {[%clk 0:01:27.5]} 16... Nb6
{[%clk 0:01:48.6]} 17. b3 {[%clk 0:01:25.2]} 17... h5 {[%clk 0:01:41.4]} 18. a5
{[%clk 0:01:21.1]} 18... Nxc4 {[%clk 0:01:41.4]} 19. bxc4 {[%clk 0:01:22]} 19...
Ka8 {[%clk 0:01:41]} 20. Bh4 {[%clk 0:01:17.7]} 20... Rdf8 {[%clk 0:01:35.7]}
21. Bxe7 {[%clk 0:01:14.5]} 21... Qxe7 {[%clk 0:01:35.5]} 22. Rab1 {[%clk
0:01:13.1]} 22... Rxf3 {[%clk 0:01:29.2]} 23. Qxf3 {[%clk 0:01:11]} 23... Rf8
{[%clk 0:01:29.3]} 24. Qh3 {[%clk 0:00:46.3]} 24... Rxf2+ {[%clk 0:01:15.5]} 25.
Kd1 {[%clk 0:00:44.2]} 25... Qg5 {[%clk 0:01:08.3]} 26. Qd3 {[%clk 0:00:19.7]}
26... Ne3+ {[%clk 0:01:00.1]} 27. Ke1 {[%clk 0:00:19.3]} 27... Qg3 {[%clk
0:00:43.1]} 28. Qb3 {[%clk 0:00:07.5]} 28... Rxc2# {[%clk 0:00:37.5]} 0-1

[Event "Early-Titled-Tuesday-Blitz-March-12-2024"]
[Site "Chess.com"]
[Date "2024.03.12"]
[Round "7"]
[White "WilsonPalencia21"]
[Black "LileKoridze"]
[Result "0-1"]
[WhiteElo "2557"]
[BlackElo "2450"]
[TimeControl "180+1"]
[EndTime "9:15:39 PDT"]
[Termination "LileKoridze won on time"]

1. d4 {[%clk 0:02:18.5]} 1... Nf6 {[%clk 0:02:58.4]} 2. c4 {[%clk 0:02:18.1]}
2... e6 {[%clk 0:02:58.4]} 3. Nf3 {[%clk 0:02:18]} 3... d5 {[%clk 0:02:58.7]} 4.
Nc3 {[%clk 0:02:12.9]} 4... Bb4 {[%clk 0:02:58.5]} 5. Bg5 {[%clk 0:02:12.2]}
5... O-O {[%clk 0:02:58.3]} 6. e3 {[%clk 0:02:09.8]} 6... Nbd7 {[%clk
0:02:56.8]} 7. Qc2 {[%clk 0:02:09.4]} 7... h6 {[%clk 0:02:56.8]} 8. Bxf6 {[%clk
0:02:09.1]} 8... Nxf6 {[%clk 0:02:57]} 9. a3 {[%clk 0:02:08.4]} 9... Bxc3+
{[%clk 0:02:56.7]} 10. Qxc3 {[%clk 0:02:08.6]} 10... b6 {[%clk 0:02:56.6]} 11.
cxd5 {[%clk 0:02:07.3]} 11... Nxd5 {[%clk 0:02:55.8]} 12. Qc2 {[%clk 0:02:07.4]}
12... Bb7 {[%clk 0:02:55.8]} 13. Be2 {[%clk 0:02:03.9]} 13... Rc8 {[%clk
0:02:55.8]} 14. b4 {[%clk 0:02:00.8]} 14... c5 {[%clk 0:02:56]} 15. dxc5 {[%clk
0:02:00.8]} 15... bxc5 {[%clk 0:02:56.5]} 16. b5 {[%clk 0:02:01.2]} 16... Qa5+
{[%clk 0:02:54.3]} 17. Qd2 {[%clk 0:02:01.2]} 17... Qb6 {[%clk 0:02:47.4]} 18.
Rc1 {[%clk 0:01:45.2]} 18... Rfd8 {[%clk 0:02:46.5]} 19. O-O {[%clk 0:01:40.5]}
19... Nf4 {[%clk 0:02:26.3]} 20. Qb2 {[%clk 0:01:36.5]} 20... Nxe2+ {[%clk
0:02:25.2]} 21. Qxe2 {[%clk 0:01:37.4]} 21... Qa5 {[%clk 0:02:22.6]} 22. Qb2
{[%clk 0:01:28]} 22... Bxf3 {[%clk 0:02:20]} 23. gxf3 {[%clk 0:01:28.1]} 23...
c4 {[%clk 0:02:20.2]} 24. Rc3 {[%clk 0:01:23.6]} 24... Rb8 {[%clk 0:02:18.1]}
25. Rb1 {[%clk 0:01:14.6]} 25... Rd5 {[%clk 0:02:16.4]} 26. Qc2 {[%clk 0:01:09]}
26... Rbxb5 {[%clk 0:02:13.5]} 27. Rxb5 {[%clk 0:01:08.5]} 27... Qxb5 {[%clk
0:02:13.5]} 28. Rxc4 {[%clk 0:01:06.3]} 28... Rg5+ {[%clk 0:02:13.5]} 29. Kh1
{[%clk 0:01:00.5]} 29... g6 {[%clk 0:02:05.7]} 30. f4 {[%clk 0:00:54.7]} 30...
Qb7+ {[%clk 0:01:54.5]} 31. e4 {[%clk 0:00:51.8]} 31... Rg4 {[%clk 0:01:53.6]}
32. Rc8+ {[%clk 0:00:16.9]} 32... Kh7 {[%clk 0:01:53.3]} 33. Rc7 {[%clk
0:00:16.9]} 33... Qb5 {[%clk 0:01:41.2]} 34. Qd1 {[%clk 0:00:09.6]} 34... Rxf4
{[%clk 0:01:39.7]} 35. f3 {[%clk 0:00:09.9]} 35... Qa5 {[%clk 0:01:26.6]} 36.
Rd7 {[%clk 0:00:08.5]} 36... Qxa3 {[%clk 0:01:25.5]} 37. Kg2 {[%clk 0:00:08.4]}
37... e5 {[%clk 0:01:22.3]} 38. Rd3 {[%clk 0:00:03.5]} 38... Qb2+ {[%clk
0:01:22.3]} 39. Kg3 {[%clk 0:00:03.7]} 39... h5 {[%clk 0:01:21.4]} 40. h4 {[%clk
0:00:03.8]} 40... Qb4 {[%clk 0:01:20.4]} 41. Rd7 {[%clk 0:00:03.5]} 41... Qb6
{[%clk 0:01:17.2]} 42. Qd2 {[%clk 0:00:02.2]} 42... Qf6 {[%clk 0:01:17.2]} 0-1

[Event "Early-Titled-Tuesday-Blitz-March-12-2024"]
[Site "Chess.com"]
[Date "2024.03.12"]
[Round "7"]
[White "Zheenbekov86"]
[Black "bolwin"]
[Result "1-0"]
[WhiteElo "2436"]
[BlackElo "2251"]
[TimeControl "180+1"]
[EndTime "9:15:40 PDT"]
[Termination "Zheenbekov86 won on time"]

1. Nf3 {[%clk 0:02:59.3]} 1... Nf6 {[%clk 0:03:00.9]} 2. g3 {[%clk 0:02:58.7]}
2... d5 {[%clk 0:03:01.4]} 3. Bg2 {[%clk 0:02:58.9]} 3... Bf5 {[%clk 0:03:02.3]}
4. O-O {[%clk 0:02:59.2]} 4... e6 {[%clk 0:03:02.8]} 5. d3 {[%clk 0:02:59.7]}
5... Be7 {[%clk 0:03:02.9]} 6. Nbd2 {[%clk 0:03:00.3]} 6... O-O {[%clk
0:03:03.2]} 7. Qe1 {[%clk 0:03:00.8]} 7... h6 {[%clk 0:02:56.5]} 8. e4 {[%clk
0:02:57.9]} 8... Bh7 {[%clk 0:02:53.7]} 9. e5 {[%clk 0:02:54.9]} 9... Nfd7
{[%clk 0:02:53.1]} 10. a4 {[%clk 0:02:48.5]} 10... c5 {[%clk 0:02:52.7]} 11. Qe2
{[%clk 0:02:32.1]} 11... Nc6 {[%clk 0:02:52.3]} 12. c3 {[%clk 0:02:32.1]} 12...
Qc7 {[%clk 0:02:47.9]} 13. Re1 {[%clk 0:02:32.2]} 13... a6 {[%clk 0:02:46.6]}
14. h4 {[%clk 0:02:27.2]} 14... b5 {[%clk 0:02:45.1]} 15. Nf1 {[%clk 0:02:25.3]}
15... Rab8 {[%clk 0:02:35.6]} 16. axb5 {[%clk 0:02:23.7]} 16... axb5 {[%clk
0:02:35.3]} 17. N1h2 {[%clk 0:02:23.7]} 17... b4 {[%clk 0:02:30]} 18. Ng4 {[%clk
0:02:16.7]} 18... bxc3 {[%clk 0:02:20.3]} 19. bxc3 {[%clk 0:02:16.2]} 19... Rb3
{[%clk 0:02:14.9]} 20. Bxh6 {[%clk 0:01:52.3]} 20... Rxc3 {[%clk 0:02:06.8]} 21.
Bxg7 {[%clk 0:01:51]} 21... Kxg7 {[%clk 0:02:04]} 22. Qd2 {[%clk 0:01:50.7]}
22... Rxd3 {[%clk 0:01:50.7]} 23. Qh6+ {[%clk 0:01:50.4]} 23... Kh8 {[%clk
0:01:51.3]} 24. Ng5 {[%clk 0:01:49.7]} 24... Bxg5 {[%clk 0:01:42]} 25. hxg5
{[%clk 0:01:49.5]} 25... Rg8 {[%clk 0:01:32.8]} 26. Bf1 {[%clk 0:01:29.6]} 26...
Rd2 {[%clk 0:01:00.4]} 27. Bb5 {[%clk 0:01:19.2]} 27... Nd4 {[%clk 0:00:52.4]}
28. Bxd7 {[%clk 0:01:11.6]} 28... Nf3+ {[%clk 0:00:26.4]} 29. Kg2 {[%clk
0:01:10.3]} 29... Nxg5 {[%clk 0:00:11.8]} 30. Nf6 {[%clk 0:01:09.4]} 30... Rg7
{[%clk 0:00:11.3]} 31. Ra8+ {[%clk 0:01:06.8]} 1-0

[Event "Early-Titled-Tuesday-Blitz-March-12-2024"]
[Site "Chess.com"]
[Date "2024.03.12"]
[Round "7"]
[White "Sadykov_Ramil"]
[Black "kushagramohan"]
[Result "1-0"]
[WhiteElo "2613"]
[BlackElo "2760"]
[TimeControl "180+1"]
[EndTime "9:15:42 PDT"]
[Termination "Sadykov_Ramil won by resignation"]

1. e4 {[%clk 0:02:10.4]} 1... e5 {[%clk 0:02:58.7]} 2. Nf3 {[%clk 0:01:58.6]}
2... Nc6 {[%clk 0:02:59]} 3. Nc3 {[%clk 0:01:56.9]} 3... Nf6 {[%clk 0:02:58.8]}
4. d4 {[%clk 0:01:56.9]} 4... exd4 {[%clk 0:02:59.7]} 5. Nxd4 {[%clk 0:01:57.8]}
5... Nxe4 {[%clk 0:03:00.3]} 6. Nxc6 {[%clk 0:01:54.3]} 6... Nxc3 {[%clk
0:03:00.2]} 7. Nxd8 {[%clk 0:01:54.3]} 7... Nxd1 {[%clk 0:03:00.8]} 8. Nxf7
{[%clk 0:01:54.3]} 8... Kxf7 {[%clk 0:03:01.5]} 9. Bc4+ {[%clk 0:01:52.6]} 9...
Kf6 {[%clk 0:03:01.5]} 10. Kxd1 {[%clk 0:01:50.3]} 10... c6 {[%clk 0:03:01.9]}
11. Be3 {[%clk 0:01:42.3]} 11... d5 {[%clk 0:03:01.7]} 12. Bd3 {[%clk
0:01:40.2]} 12... Bd6 {[%clk 0:02:57.9]} 13. Kd2 {[%clk 0:01:31.6]} 13... Be6
{[%clk 0:02:54.3]} 14. c3 {[%clk 0:01:27.3]} 14... c5 {[%clk 0:02:51.8]} 15. a3
{[%clk 0:01:16.7]} 15... Rhd8 {[%clk 0:02:47.4]} 16. h4 {[%clk 0:01:10.6]} 16...
h6 {[%clk 0:02:47.2]} 17. f3 {[%clk 0:01:00.6]} 17... b6 {[%clk 0:02:40.4]} 18.
g4 {[%clk 0:00:56.1]} 18... Kf7 {[%clk 0:02:39.5]} 19. b4 {[%clk 0:00:49]} 19...
Rac8 {[%clk 0:02:23.1]} 20. bxc5 {[%clk 0:00:44.5]} 20... bxc5 {[%clk 0:02:24]}
21. Rab1 {[%clk 0:00:43.5]} 21... Rc7 {[%clk 0:02:23.5]} 22. a4 {[%clk
0:00:35.4]} 22... Rcd7 {[%clk 0:02:21.4]} 23. h5 {[%clk 0:00:29.6]} 23... d4
{[%clk 0:02:20.7]} 24. cxd4 {[%clk 0:00:25.8]} 24... cxd4 {[%clk 0:02:21.6]} 25.
Bf2 {[%clk 0:00:23]} 25... Bf4+ {[%clk 0:02:21]} 26. Ke2 {[%clk 0:00:21.2]}
26... Re7 {[%clk 0:02:19.6]} 27. Kf1 {[%clk 0:00:13.5]} 27... Be3 {[%clk
0:02:16.8]} 28. Bh4 {[%clk 0:00:12.4]} 28... Bg5 {[%clk 0:02:16.1]} 29. Bxg5
{[%clk 0:00:12]} 29... hxg5 {[%clk 0:02:17]} 30. h6 {[%clk 0:00:12.7]} 30... Kg8
{[%clk 0:02:02.2]} 31. Rb5 {[%clk 0:00:11.9]} 31... Bd5 {[%clk 0:01:51.9]} 32.
Rxd5 {[%clk 0:00:08.6]} 32... Rxd5 {[%clk 0:01:52.8]} 33. Bc4 {[%clk 0:00:08.7]}
33... Re5 {[%clk 0:01:49.4]} 34. Kf2 {[%clk 0:00:04.5]} 34... Kh7 {[%clk
0:01:48.2]} 35. hxg7+ {[%clk 0:00:03.9]} 35... Kxg7 {[%clk 0:01:49.1]} 36. Bxd5
{[%clk 0:00:04.2]} 36... Rxd5 {[%clk 0:01:50]} 37. Rb1 {[%clk 0:00:04.4]} 37...
Ra5 {[%clk 0:01:48.2]} 38. Rb4 {[%clk 0:00:03.4]} 38... d3 {[%clk 0:01:48.1]}
39. Ke3 {[%clk 0:00:03.5]} 39... Rd5 {[%clk 0:01:48.7]} 40. Kd2 {[%clk
0:00:03.6]} 40... a5 {[%clk 0:01:48.5]} 41. Rb5 {[%clk 0:00:03.7]} 41... Rxb5
{[%clk 0:01:25.2]} 42. axb5 {[%clk 0:00:03.4]} 42... a4 {[%clk 0:01:26.1]} 43.
Kxd3 {[%clk 0:00:03.8]} 43... a3 {[%clk 0:01:27]} 44. Kc3 {[%clk 0:00:03.6]} 1-0

[Event "Early-Titled-Tuesday-Blitz-March-12-2024"]
[Site "Chess.com"]
[Date "2024.03.12"]
[Round "7"]
[White "becemix"]
[Black "Boundless_Strike"]
[Result "0-1"]
[WhiteElo "2459"]
[BlackElo "2604"]
[TimeControl "180+1"]
[EndTime "9:15:43 PDT"]
[Termination "Boundless_Strike won on time"]

1. e4 {[%clk 0:02:50.2]} 1... e5 {[%clk 0:02:57.6]} 2. Nc3 {[%clk 0:02:44.6]}
2... Nf6 {[%clk 0:02:54.9]} 3. g3 {[%clk 0:02:43.6]} 3... d5 {[%clk 0:02:43.2]}
4. exd5 {[%clk 0:02:44.5]} 4... Nxd5 {[%clk 0:02:43.3]} 5. Bg2 {[%clk
0:02:42.4]} 5... Nxc3 {[%clk 0:02:42.2]} 6. bxc3 {[%clk 0:02:41.1]} 6... Nc6
{[%clk 0:02:42.7]} 7. d3 {[%clk 0:02:36.1]} 7... Bd6 {[%clk 0:02:41.9]} 8. Nf3
{[%clk 0:02:35.2]} 8... O-O {[%clk 0:02:41.8]} 9. Ng5 {[%clk 0:02:22.8]} 9... h6
{[%clk 0:02:40.1]} 10. Ne4 {[%clk 0:02:20.7]} 10... Be7 {[%clk 0:02:40.3]} 11.
O-O {[%clk 0:02:03.8]} 11... f5 {[%clk 0:02:38.1]} 12. Nd2 {[%clk 0:02:03.2]}
12... Be6 {[%clk 0:02:36.6]} 13. Rb1 {[%clk 0:01:58.1]} 13... Rb8 {[%clk
0:02:33.5]} 14. c4 {[%clk 0:01:55.6]} 14... Qd7 {[%clk 0:02:24.6]} 15. Re1
{[%clk 0:01:53.9]} 15... Bf6 {[%clk 0:02:22.2]} 16. Bb2 {[%clk 0:01:39.7]} 16...
Nd4 {[%clk 0:02:08.2]} 17. Bxd4 {[%clk 0:01:33.8]} 17... Qxd4 {[%clk 0:02:03.5]}
18. Rxb7 {[%clk 0:01:29.1]} 18... Rxb7 {[%clk 0:02:03]} 19. Bxb7 {[%clk
0:01:30]} 19... Rb8 {[%clk 0:01:54.9]} 20. Nb3 {[%clk 0:01:10.8]} 20... Qc3
{[%clk 0:01:49.9]} 21. Bd5 {[%clk 0:00:57]} 21... Bxd5 {[%clk 0:01:46.6]} 22.
cxd5 {[%clk 0:00:57.9]} 22... a5 {[%clk 0:01:47.2]} 23. a4 {[%clk 0:00:55]}
23... Rb4 {[%clk 0:01:45.2]} 24. Nxa5 {[%clk 0:00:49.9]} 24... Rxa4 {[%clk
0:01:42.4]} 25. Nc4 {[%clk 0:00:49.3]} 25... Ra2 {[%clk 0:01:41.9]} 26. d6
{[%clk 0:00:35.4]} 26... cxd6 {[%clk 0:01:35.2]} 27. Nxd6 {[%clk 0:00:36.3]}
27... g6 {[%clk 0:01:09.6]} 28. Nc4 {[%clk 0:00:21.8]} 28... Rxc2 {[%clk
0:00:57.7]} 29. Nxe5 {[%clk 0:00:21.2]} 29... Bxe5 {[%clk 0:00:56.9]} 30. Qf3
{[%clk 0:00:14.1]} 30... Qxe1+ {[%clk 0:00:56.2]} 0-1

[Event "Early-Titled-Tuesday-Blitz-March-12-2024"]
[Site "Chess.com"]
[Date "2024.03.12"]
[Round "7"]
[White "GMSrinath"]
[Black "Sanyura"]
[Result "1-0"]
[WhiteElo "2797"]
[BlackElo "2611"]
[TimeControl "180+1"]
[EndTime "9:15:44 PDT"]
[Termination "GMSrinath won by resignation"]

1. Nf3 {[%clk 0:03:00.9]} 1... Nf6 {[%clk 0:02:47.7]} 2. c4 {[%clk 0:03:00.1]}
2... g6 {[%clk 0:02:47.1]} 3. g3 {[%clk 0:02:58.7]} 3... Bg7 {[%clk 0:02:47.4]}
4. Bg2 {[%clk 0:02:59.6]} 4... O-O {[%clk 0:02:48.1]} 5. O-O {[%clk 0:03:00.4]}
5... d6 {[%clk 0:02:49]} 6. d4 {[%clk 0:03:01]} 6... Nbd7 {[%clk 0:02:49.6]} 7.
Nc3 {[%clk 0:03:01.6]} 7... e5 {[%clk 0:02:50]} 8. e4 {[%clk 0:03:02.3]} 8...
exd4 {[%clk 0:02:50.9]} 9. Nxd4 {[%clk 0:03:02.3]} 9... Nc5 {[%clk 0:02:51.8]}
10. Re1 {[%clk 0:03:02.4]} 10... Ng4 {[%clk 0:02:51.7]} 11. f4 {[%clk
0:02:48.7]} 11... c6 {[%clk 0:02:42.2]} 12. h3 {[%clk 0:02:46.2]} 12... Qb6
{[%clk 0:02:21.5]} 13. hxg4 {[%clk 0:02:45.4]} 13... Ne6 {[%clk 0:02:21.7]} 14.
Be3 {[%clk 0:02:33.9]} 14... Bxd4 {[%clk 0:02:21.1]} 15. Bxd4 {[%clk 0:02:20.5]}
15... Qxd4+ {[%clk 0:02:21.5]} 16. Qxd4 {[%clk 0:02:19.2]} 16... Nxd4 {[%clk
0:02:22.4]} 17. Rad1 {[%clk 0:02:17.3]} 17... c5 {[%clk 0:02:10.9]} 18. g5
{[%clk 0:02:10.9]} 18... Be6 {[%clk 0:02:00.7]} 19. b3 {[%clk 0:02:03.9]} 19...
a6 {[%clk 0:01:50.2]} 20. e5 {[%clk 0:01:52.9]} 20... dxe5 {[%clk 0:01:45]} 21.
Rxe5 {[%clk 0:01:53.8]} 21... Bg4 {[%clk 0:01:20.1]} 22. Rd3 {[%clk 0:01:33.4]}
22... Rad8 {[%clk 0:01:14]} 23. Kf2 {[%clk 0:01:29.5]} 23... b6 {[%clk
0:00:23.7]} 24. Nd5 {[%clk 0:01:25]} 24... Kg7 {[%clk 0:00:15.7]} 25. Nxb6
{[%clk 0:01:20.8]} 25... Nc6 {[%clk 0:00:12.8]} 26. Rxd8 {[%clk 0:01:15.5]}
26... Rxd8 {[%clk 0:00:10.9]} 27. Bxc6 {[%clk 0:01:14.7]} 27... Rd2+ {[%clk
0:00:10.6]} 28. Ke3 {[%clk 0:01:00.7]} 28... Rxa2 {[%clk 0:00:09.8]} 29. Rxc5
{[%clk 0:00:57.8]} 29... Rb2 {[%clk 0:00:08.9]} 30. Ba4 {[%clk 0:00:52.9]} 30...
Rg2 {[%clk 0:00:08.8]} 31. Rc7 {[%clk 0:00:47.6]} 31... Rxg3+ {[%clk 0:00:08.9]}
32. Kd4 {[%clk 0:00:48.3]} 32... Rf3 {[%clk 0:00:08.5]} 33. Nd5 {[%clk
0:00:48.5]} 1-0